Cogmind - Beta 15 @@@ ROGUE MODE // 2025.09.15 @ 19:00:59 Player: Lillith Result: Destroyed by BF-RO1(R) with Subdweller Machine Gun Performance ------------- Evolutions (0) 0 Regions Visited (2) 400 Robots Destroyed (31) 155 Value Destroyed (650) 650 Prototype IDs (0) 0 Alien Tech Used (0) 0 Bonus (0) 0 TOTAL SCORE: 1205 Bonus ------- None Cogmind --------- Core Integrity 0/250 Matter 72/300 Energy 250/250 System Corruption 0% Temperature Cool (0) Movement Treading (160) Location -10/Subcaves Parts ------- > --- POWER (1) -------- Ion Engine > --- PROPULSION (2) --- Light Treads Light Treads > --- UTILITY (2) ------ Large Storage Unit Improved Targeting Computer > --- WEAPON (2) ------- Beam Cannon Light Cannon > --- INVENTORY (15) --- Subdweller Power Source Wheel Wheel Subdweller Monowheel Disposable Heat Sink Huge Storage Unit Medium Matter Pod (0) Subdweller Optics Tractor Beam Subdweller Laser Subdweller Laser Light Cannon Grenade Launcher Mining Laser Peak State ------------ > --- POWER ------------ Ion Engine > --- PROPULSION ------- Light Treads Wheel > --- UTILITY ---------- Large Storage Unit Improved Terrain Scanner > --- WEAPON ----------- Assault Rifle Light Assault Rifle > --- INVENTORY -------- Ion Engine Light Treads Aluminum Leg Wheel Wheel Wheel Small Storage Unit Small Matter Pod Tractor Beam EM Pulse Gun [Rating: 10] Favorites ----------- Power Ion Engine Engine Ion Engine Propulsion Light Treads Treads Light Treads Wheel Wheel Utility Large Storage Unit Device Improved Terrain Scanner Storage Large Storage Unit Processor Improved Targeting Computer Weapon Light Cannon Energy Cannon Beam Cannon Ballistic Gun Assault Rifle Ballistic Cannon Light Cannon Special Weapon Mining Laser Build | -11 -10 -10 ------- Run | Yrd Mat Sub Slots Evolved . | . . . Power . | . . . Propulsion . | . . . Utility . | . . . Weapon . | . . . Parts Attached 22 | 7 8 7 Power 3 | 1 1 1 Engine 3 | 1 1 1 Core . | . . . Reactor . | . . . Propulsion 5 | 2 . 3 Treads 3 | 1 . 2 Leg . | . . . Wheel 2 | 1 . 1 Hover . | . . . Flight . | . . . Utility 6 | 2 4 . Device 2 | 1 1 . Storage 3 | 1 2 . Processor 1 | . 1 . Hackware . | . . . Protection . | . . . Artifact . | . . . Weapon 8 | 2 3 3 Energy Gun . | . . . Energy Cannon 1 | . . 1 Ballistic Gun 2 | 2 . . Ballistic Cannon 4 | . 3 1 Launcher . | . . . Special Weapon 1 | . . 1 Impact Weapon . | . . . Slashing Weapon . | . . . Piercing Weapon . | . . . Special Melee Weapon . | . . . Unidentified Prototypes . | . . . Parts Lost 5 | . 2 3 Power 2 | . 1 1 Propulsion 1 | . . 1 Utility 1 | . 1 . Weapon 1 | . . 1 Highest Loss Streak 1 | . 1 1 To Critical Strikes . | . . . Average Backups 13 | 6 12 14 Power . | . 1 . Propulsion 4 | 3 5 3 Utility 3 | . 2 4 Weapon 4 | 1 3 6 Tool/Special . | . . . Unused Backups 18 | 3 2 13 Power 1 | . . 1 Propulsion 6 | 2 . 4 Utility 5 | 1 . 4 Weapon 6 | . 2 4 Tool/Special . | . . . Average Slot Usage (%) 99 | . 98 99 Engine 13 | . 13 13 Treads 18 | . 14 22 Wheel 9 | . 13 5 Device 2 | . 5 . Storage 15 | . 17 14 Processor 9 | . 5 14 Ballistic Gun 7 | . 15 . Ballistic Cannon 15 | . 12 19 Special Weapon 3 | . . 7 Peak Build Rating 10 | 8 10 10 Average Rating 9 | 6 9 9 On Entrance 5 | . 8 9 Naked Turns . | . . . Heaviest Build 31 | 14 31 31 Greatest Support 40 | 20 20 40 Greatest Overweight (x) 8 | 1 8 3 Average Overweight (x) 1 | . 2 . Largest Inventory Capacity 15 | 8 15 15 Average Capacity 14 | 7 14 15 Most Carried 15 | 8 15 15 Average Carried 13 | 6 12 14 Final Capacity 15 | 8 15 15 Final Carried 15 | 8 15 14 Class Distribution -------------------- 100% | Mutant Dominant Class ---------------- Mutant | -10/Materials Mutant | -10/Subcaves Resources | -11 -10 -10 ----------- Run | Yrd Mat Sub Matter Collected 831 | 342 280 209 Remotely 187 | 187 . . Salvage Created 767 | 200 463 104 Parts 59 | 24 32 3 Haulers Intercepted 2 | . 2 . Recyclers Shooed . | . . . Parts Field Recycled . | . . . Retrieved Matter . | . . . Parts Self-Destructed 1 | . . 1 Prevented . | . . . Kills | -11 -10 -10 ------- Run | Yrd Mat Sub Combat Hostiles Destroyed 19 | . 13 6 Guns 8 | . 8 . Cannons 11 | . 5 6 Classes Destroyed 9 | 3 5 1 Worker 2 | 2 . . Tunneler 5 | 5 . . Hauler 2 | . 2 . Recycler 1 | 1 . . Operator 1 | . 1 . Watcher 1 | . 1 . Swarmer 6 | . 6 . Grunt 7 | . 7 . Subdweller 6 | . . 6 Best Kill Streak 8 | 8 5 2 Combat Bots Only 4 | . 4 2 Max Kills in Single Turn 1 | 1 1 1 Gunslinging . | . . . Exploded . | . . . Melee . | . . . Uniques/NPCs Destroyed . | . . . Combat | -11 -10 -10 -------- Run | Yrd Mat Sub Hostile Shots Fired 103 | . 57 46 Missed 23 | . 12 11 Hits 80 | . 45 35 Projectile 80 | . 45 35 Critical Strikes 2 | . 1 1 Damage Taken 1233 | . 443 790 Core 258 | . 24 234 Absorbed by Shields . | . . . Core Remaining (%) 100 | 100 . . Volleys Fired 104 | 18 33 53 Largest 2 | 2 2 2 Hottest 130 | 40 60 130 Shots Fired 201 | 36 66 99 Gun 74 | 36 38 . Cannon 115 | . 28 87 Launcher . | . . . Special 12 | . . 12 Kinetic 181 | 36 66 79 Thermal 20 | . . 20 Explosive . | . . . Electromagnetic . | . . . Robot Hit Streak 18 | 5 11 18 Robot Miss Streak 3 | 2 3 1 Penetration Max . | . . . Secondary Targets 2 | . 2 . Max Gunslinging Chain 1 | . 1 . Shots Hit Robots 121 | 23 45 53 Core Hits 48 | 13 23 12 Critical Kills . | . . . Critical Parts Destroyed . | . . . Critical Strikes 3 | . . 3 Blast 3 | . . 3 Melee Attacks . | . . . Impact . | . . . Slashing . | . . . Piercing . | . . . Sneak Attacks . | . . . Combat Hostiles . | . . . Follow-up Attacks . | . . . Damage Inflicted 1792 | 243 633 916 Guns 535 | 243 292 . Cannons 1257 | . 341 916 Explosions . | . . . Melee . | . . . Ramming . | . . . Kinetic 1686 | 243 633 810 Thermal 106 | . . 106 Explosive . | . . . Electromagnetic . | . . . Impact . | . . . Slashing . | . . . Piercing . | . . . Highest Corruption . | . . . Average Corruption . | . . . Corruption Purged . | . . . Corruption Blocked . | . . . Overload Shots . | . . . Overflow Damage . | . . . Projectiles . | . . . Explosions . | . . . Melee . | . . . Knockbacks 11 | . 4 7 Impact . | . . . Kinetic 10 | . 3 7 Secondary 1 | . 1 . Self-Inflicted Damage . | . . . Shots . | . . . Rammed . | . . . Targets Rammed . | . . . Kicked . | . . . Crushed . | . . . Highest Temperature 18 | . 18 . Average Temperature 6 | . 6 . Received Heat Transfer 270 | . 144 126 Siege Activations . | . . . Martial Activations . | . . . Shielding Activations . | . . . Robots Disrupted . | . . . Combat Hostiles . | . . . Robots Corrupted . | . . . Combat Hostiles . | . . . Parts Fried . | . . . Impact Corruptions . | . . . Robots Melted . | . . . Combat Hostiles . | . . . Parts Melted . | . . . Heat Transferred 222 | . . 222 Parts Sabotaged . | . . . Parts Stolen . | . . . Parts Stripped . | . . . Power Chain Reactions . | . . . Alert | -11 -10 -10 ------- Run | Yrd Mat Sub Maximum Alert Level 1 | . 1 . Low Security (%) 99 | 100 99 . Level 1 . | . . . Level 2 . | . . . Level 3 . | . . . Level 4 . | . . . Level 5 . | . . . High Security . | . . . Max Security . | . . . Peak Influence 202 | 15 202 . Initial . | . . . Average 74 | 4 85 . Influence Increases 446 | 40 406 . Destroy 0b10 Robot/C 260 | . 260 . Destroy 0b10 Robot/NC 60 | 40 20 . Destroy Leader 56 | . 56 . Successful Hack 8 | . 8 . Disable Machine 30 | . 30 . Destroy Structure 2 | . 2 . Lose Combat Pursuer 30 | . 30 . Influence Decreases 446 | 40 286 120 Entered New Map 58 | . . 58 Time Decay 358 | 40 266 52 Lost Part 30 | . 20 10 Squads Dispatched 4 | . 4 . Investigation 1 | . 1 . Extermination . | . . . Reinforcement 3 | . 3 . Assault . | . . . Garrison . | . . . Intercept . | . . . Searches Triggered . | . . . Construction Impeded . | . . . Haulers Reinforced . | . . . Active Scanning Responses . | . . . Cargo Convoy Interrupts . | . . . Stealth | -11 -10 -10 --------- Run | Yrd Mat Sub Distress Signals . | . . . Communications Jammed . | . . . Distress Signals . | . . . Times Spotted 24 | . 17 7 Peak Tracking Total 4 | . 4 2 Tactical Retreats 2 | . 2 . Traps | -11 -10 -10 ------- Run | Yrd Mat Sub Traps Triggered 4 | . 3 1 Indirectly . | . . . Trap Hack Attempts . | . . . Triggered . | . . . Disarmed . | . . . Reprogrammed . | . . . Reused . | . . . Traps Extracted . | . . . Installed . | . . . Triggered . | . . . Machines | -11 -10 -10 ---------- Run | Yrd Mat Sub Machines Disabled 2 | . 2 . Max in Single Turn 1 | . 1 . Machines Repaired . | . . . Machines Dismantled . | . . . Machines Sabotaged . | . . . Overloaded Fab Kills . | . . . Hacking | -11 -10 -10 --------- Run | Yrd Mat Sub Machines Accessed 4 | . 3 1 Terminals 3 | . 3 . Fabricators . | . . . Repair Stations . | . . . Recycling Units . | . . . Scanalyzers . | . . . Garrison Access . | . . . Total Hacks 11 | . 7 4 Successful 5 | . 1 4 Failed 6 | . 6 . Catastrophic 1 | . 1 . Database Lockouts . | . . . Manual 7 | . 7 . Terminals 7 | . 7 . Fabricators . | . . . Repair Stations . | . . . Recycling Units . | . . . Scanalyzers . | . . . Garrison Access . | . . . Terminal Hacks 5 | . 1 4 Record 4 | . . 4 Branch Access Points 1 | . 1 . Fabricator Hacks . | . . . Repair Station Hacks . | . . . Recycling Unit Hacks . | . . . Scanalyzer . | . . . Garrison Access Hacks . | . . . Unauthorized Hacks . | . . . Terminals . | . . . Fabricators . | . . . Repair Stations . | . . . Recycling Units . | . . . Scanalyzers . | . . . Garrison Access . | . . . Data Cores Recovered . | . . . Used . | . . . Hacking Detections 2 | . 2 . Full Trace Events 1 | . 1 . Feedback Events . | . . . Feedback Blocked . | . . . Robot Schematics Acquired . | . . . Robots Built . | . . . Authchips . | . . . Time . | . . . Total Robot Build Rating . | . . . Part Schematics Acquired . | . . . Parts Built . | . . . Authchips . | . . . Time . | . . . Total Part Build Rating . | . . . Parts Repaired . | . . . Time . | . . . Parts Recycled . | . . . Recycled Matter . | . . . Retrieved Matter . | . . . Retrieved Components . | . . . Parts Scanalyzed . | . . . Part Schematics Acquired . | . . . Parts Damaged . | . . . Bothacking | -11 -10 -10 ------------ Run | Yrd Mat Sub Used RIF Installer . | . . . Robots Hacked . | . . . Non-combat . | . . . Combat . | . . . Robot Hacks Applied . | . . . Relay Couplers Released . | . . . Fabnet Peak Effective % . | . . . Robots Rewired . | . . . Allies Hacked . | . . . Hacks Repelled . | . . . Allies | -11 -10 -10 -------- Run | Yrd Mat Sub Total Allies . | . . . Largest Group . | . . . Highest-Rated Group . | . . . Highest-Rated Ally . | . . . Total Orders . | . . . Ally Attacks . | . . . Total Damage . | . . . Kills . | . . . Allies Corrupted . | . . . Allies Melted . | . . . Intel | -11 -10 -10 ------- Run | Yrd Mat Sub Active Infowar (turns) 395 | . 395 . Terrain 395 | . 395 . Robot Analysis Total . | . . . Derelict Logs Recovered 1 | . . 1 Drone Launches . | . . . Drone Recoveries . | . . . Exploration | -11 -10 -10 ------------- Run | Yrd Mat Sub Turns Passed 2146 | 160 1011 975 Spaces Moved 1089 | 91 531 467 Core 4 | 3 1 . Treads 404 | 4 4 396 Legs . | . . . Wheels 681 | 84 526 71 Hover . | . . . Flight . | . . . Fastest Speed 50 | 50 95 110 Average Speed 132 | 95 112 162 Slowest Speed 450 | 160 450 240 Overloaded Moves . | . . . Propulsion Burnouts . | . . . Robots Hopped . | . . . Potential Cave-ins . | . . . Cave-ins Triggered . | . . . Exploration Rate (%) 40 | 5 81 36 Regions Visited 2 Branch Regions 1 Pre-discovered Areas 1 | . . 1 Known Exits Taken . | . . . Unknown Exits Taken 2 | 1 1 . Scrap Searched . | . . . Spaces Dug . | . . . Terrain Destroyed . | . . . Melee . | . . . Projectile . | . . . AOE . | . . . Terrain Rammed . | . . . Walls Destroyed . | . . . Machines Disabled . | . . . Actions | -11 -10 -10 --------- Run | Yrd Mat Sub Total 1575 | 131 885 559 Wait 305 | . 287 18 Move 1087 | 90 530 467 Hop . | . . . Pick Up 32 | 13 12 7 Fast Attach 13 | 5 8 . Attach 6 | 2 1 3 Detach 2 | . 2 . Swap 11 | . 5 6 Drop 15 | 3 7 5 Fire 104 | 18 33 53 Melee . | . . . Ram . | . . . Kick . | . . . Crush . | . . . Escape Stasis . | . . . Rewire . | . . . Trap . | . . . Miscellaneous . | . . . Route ------- -11/Scrapyard -10/Materials (discovered 4 exits: [*Mat x2] / *Min / *Sub) -10/Subcaves History --------- Turn | Location | Event 16 | -11/Scrapyard | Discovered new exit (range 16) 161 | -11/Scrapyard | Entered Materials 196 | -10/Materials | Discovered new exit (range 15) 316 | -10/Materials | Build established: Mutant 494 | -10/Materials | Identified exit to Mines 753 | -10/Materials | Discovered new exit (range 8) 1054 | -10/Materials | Discovered new exit (range 5) 1152 | -10/Materials | Discovered new exit (range 9) 1172 | -10/Materials | Entered Subcaves 1172 | -10/Subcaves | Learned location of Storage (-9) 1521 | -10/Subcaves | Core integrity fell below 50% 1538 | -10/Subcaves | Core integrity fell below 20% 1693 | -10/Subcaves | Shifting Twisted Machinery released Sub. Power Source 1697 | -10/Subcaves | Shifting Twisted Machinery released Flamer 2005 | -10/Subcaves | Visited Clippyterm 2010 | -10/Subcaves | Learned Research machine intel 2147 | -10/Subcaves | Destroyed by BF-RO1(R) with Subdweller Machine Gun Last Messages --------------- with the algorithm, because no matter how much data I collect to feed it, half the time it still manages to suggest unhelpful sample queries and responses. --DD-NU8 >>Record "Procgen" It looks like you're analyzing machine distribution algorithms, I have access to useful relevant data. Data stored: Research machine intel. >>Record "Early Bird" It looks like you're searching for a worm, right? Don't bother with early when it comes to the Lifeworm, it's never early, but by some measures it might be just in time... >>Record "LU-1G1" It looks like you're researching the legendary digger of dangerously deep tunnels, unfortunately it seems not even members of the Boring Crew know what became of that one. 02135_ Lgt. Cannon destroyed. Map ----- +----------------------------------------------------+ | ?????????????????????#"" ## ##?## ### "" # | | ?????????????????????#"X ### ### "# | | ?????????????????????#"" ## # #?# "## | | ?????????????????????#"""### #?#" "# | | ?????????????????????#####?## ####"" " | | ????????????????????????????# ## "# | | ???????????????????????????## ### | | ???????????????????????????# # #?# | | ???????????????????????????# #?## | | ???????????????????????????## # #### | | ????????????????????????????# ## | | ????????????????????????????# #### ## | | ????????????????????????????# ##??#### | | ???????????????????????????## ### ########???? | | ???????????????????????????# ### #???## ##### | | ??????????????????????????## ## ##### | | ??????????????????????????# ## | | ??????????????????????????# ### | | ??????????????????????????##??## | | ??????????????????????????????## ## | | ??????????????????????????????# ## ## | | ??????????????????????????##### #### ### | | ??????????????????????????# ## ###??#### ##?#### | | ??????????????????????????# ##???????###?????# | | ????????????????## ##??### #?????????????#### | | ????????????????# "%"#@ ##????????????# | | ?????????????????# %R #?????????????# | | ?????????????????# #### ### #????????????# | | ?????????????????#??????##% #?? ??????????## | | ?????????????????????????## #?# ????????# | | ??????????????????????????# #? #### ???????# | | ?????????????????????????? ###????? ??????# | | ?????????????????????????? #??????????????# | | ????????????????????????? #??????????????#? | | ????????????????????????? ??????????????? | | ????????????????????????# #?????????????? | | ????????????????????????## ##?????????????? | | ?????????????????????????## ###??????????????? | | ??????????????????????????# ##????????????????? | | ??????????????????????????? #?????????????????? | | ??????????????????????????? ??????????????????? | | ?????????????????????????????????????????????????? | | ?????????????????????????????????????????????????? | | ?????????????????????????????????????????????????? | | ?????????????????????????????????????????????????? | | ?????????????????????????????????????????????????? | | ????????????????????????????????????????????????#? | | ???????????????????????????????????????????????? # | | ????????????????????????????????????????????????# | | ????????????????????????????????????????????????# | +----------------------------------------------------+ Best States ------------- Heat Dissipation 25 Energy Generation 10 Energy Capacity 250 Matter Stores 345 Matter Capacity 350 Sight Range 16 Terrain Scan Range 16 Terrain Scan Density 10 Evasion (%) 44 Targeting Accuracy 6 Recoil Reduction 2 Item Schematics ----------------- None Robot Schematics ------------------ None Fabricated ------------ Nothing Repaired ---------- Nothing Alien Tech Used ----------------- None Achievements -------------- None Challenges ------------ None Game ------ Seed GrenadeMicroCoupler Manual? 0 Play Time 00:16:16 Cumulative 54.1 hours Start 2025.09.15 @ 18:46:45 End 2025.09.15 @ 19:00:59 Sessions 1 Manual Loads 0 Difficulty Rogue Special Mode None Game No. 98 Rogue 98 Adventurer 0 Explorer 0 Win Type - Total 0 Types 0/0/0/0/0/0/0/0/0/0 Lore% 45 Gallery% 33 Achievement% 30 Wizard Run 0 Options --------- Layout 2 ASCII 0 Keyboard 1 Movement Arrows Keybinds 0 Fullscreen 2 Font 32/SmallcapsGlow Map View 50x44 Zoom Use 0% Tactical HUD 1 Map Filters NONE Filters NONE Steam 1 RUN: 1873e0d1-134d-4228-961e-83a330220014